bitfinex/quotes_ETHUSD_20250404
["timestamp","ask_amount","ask_price","bid_price","bid_amount"]
[1743798007663,5.53252,1807.5,1807.2,6.31977]
[1743798008465,5.53252,1807.5,1807.2,11.85306]
[1743798008641,5.53252,1807.5,1807.2,6.31977]
[1743798008966,5.53252,1807.5,1807.2,11.85305]
[1743798009551,16.4107,1807.6,1807.2,11.85305]
[1743798010490,5.346,1807.6,1807.3,5.53297]
[1743798010680,25.39,1807.8,1807.5,5.53241]
[1743798010681,30.92165,1807.8,1807.5,5.53241]
[1743798010850,5.345,1807.7,1807.5,5.53241]
[1743798011561,5.345,1807.7,1807.5,5.53235]
[1743798011873,10.87704,1807.7,1807.4,6.30967]
[1743798014258,10.87704,1807.7,1807.4,11.84226]
[1743798014489,10.87704,1807.7,1807.4,11.84229]
[1743798014786,5.345,1807.7,1807.4,6.30958]
[1743798014983,5.345,1807.7,1807.5,5.5325]
[1743798015389,10.87691,1807.7,1807.4,6.30958]
[1743798015578,5.345,1807.7,1807.5,5.5324]
[1743798016088,5.345,1807.7,1807.4,0.7769]
[1743798016287,10.87712,1807.7,1807.4,6.30969]
[1743798016662,10.87712,1807.7,1807.4,11.8424]
[1743798016965,5.345,1807.7,1807.5,5.53249]
[1743798017285,5.345,1807.7,1807.4,11.84231]
[1743798017461,5.345,1807.7,1807.5,5.53245]
[1743798019160,10.87689,1807.7,1807.4,11.84228]
[1743798019870,10.87689,1807.7,1807.4,6.30958]
[1743798020065,10.87689,1807.7,1807.4,6.30957]
[1743798020281,10.87689,1807.7,1807.4,11.84224]
[1743798020729,5.345,1807.7,1807.5,5.53249]
[1743798020889,10.87697,1807.7,1807.4,6.30957]
[1743798021395,10.87697,1807.7,1807.4,11.84227]
[1743798021593,5.345,1807.7,1807.4,0.7769]
[1743798021799,5.345,1807.7,1807.5,11.06476]
[1743798022111,5.345,1807.7,1807.5,5.53237]
[1743798022293,5.345,1807.7,1807.6,5.53219]
[1743798022590,5.344,1807.7,1807.6,5.53219]
[1743798023225,5.344,1807.7,1807.5,5.53237]
[1743798023498,5.344,1807.7,1807.5,11.06474]
[1743798023696,5.344,1807.7,1807.5,11.06477]
[1743798023897,5.344,1807.7,1807.5,5.53237]
[1743798024098,5.344,1807.7,1807.4,12.30776829]
[1743798024308,5.344,1807.7,1807.5,5.53247]
[1743798024874,5.344,1807.7,1807.5,11.06483]
[1743798025095,5.344,1807.7,1807.5,5.53236]
[1743798027911,5.344,1807.7,1807.5,11.06478]
[1743798028083,5.344,1807.7,1807.5,5.53236]
[1743798028815,5.344,1807.7,1807.6,5.53219]
[1743798029314,5.344,1807.7,1807.6,6.36289]
[1743798031502,5.344,1807.7,1807.5,5.53236]
[1743798031833,10.876,1807.7,1807.4,5.53277]
[1743798032007,16.40804,1807.7,1807.4,5.53277]
[1743798032335,10.876,1807.7,1807.4,5.53277]
[1743798032535,10.876,1807.7,1807.4,5.53267]
[1743798032913,10.876,1807.7,1807.4,5.53266]
[1743798033115,10.876,1807.7,1807.3,5.53301]
[1743798033527,10.876,1807.7,1807.4,5.53269]
[1743798033938,10.876,1807.7,1807.4,11.06536]
[1743798034232,10.876,1807.7,1807.4,5.53267]
[1743798035235,5.53227,1807.6,1807.3,5.53303]
[1743798035437,6.35457,1807.6,1807.2,5.53328]
[1743798035623,6.35457,1807.6,1807.3,5.5331]
[1743798035826,11.88694,1807.6,1807.3,5.5331]
[1743798036018,11.88694,1807.6,1807.2,11.0667]
[1743798036215,11.88694,1807.6,1807.2,5.53335]
[1743798036216,5.53252,1807.5,1807.2,5.53335]
[1743798036734,11.88702,1807.6,1807.2,11.06663]
[1743798036908,5.53259,1807.5,1807.2,5.53328]
[1743798037519,5.53259,1807.5,1807.2,11.0666]
[1743798037719,11.88704,1807.6,1807.2,11.0666]
[1743798038135,6.35457,1807.6,1807.3,5.5331]
[1743798038441,6.35457,1807.6,1807.3,11.066]
[1743798038641,6.35457,1807.6,1807.3,5.53299]
[1743798038842,6.35457,1807.6,1807.3,11.06596]
[1743798039231,6.35457,1807.6,1807.3,11.06598]
[1743798039546,3.0,1807.6,1807.4,5.5327]
[1743798040948,1.3035,1807.8,1807.4,5.5327]
[1743798040949,3.5,1807.8,1807.5,6.3642]
[1743798041242,5.343,1807.6,1807.5,6.3642]
[1743798041741,5.343,1807.6,1807.5,6.53705422]
[1743798042429,5.343,1807.6,1807.5,1.00465422]
[1743798042630,5.343,1807.6,1807.5,0.17285422]
[1743798043047,10.87519,1807.6,1807.5,0.17285422]
[1743798043355,5.343,1807.6,1807.5,0.17285422]
[1743798044429,5.343,1807.6,1807.4,5.53266]
[1743798044759,10.87521,1807.6,1807.3,5.53311]
[1743798044958,10.87521,1807.6,1807.3,11.06622]
[1743798045160,5.343,1807.6,1807.4,5.53273]
[1743798045454,5.343,1807.6,1807.4,11.0654]
[1743798045659,9.0316,1807.8,1807.5,5.5325]
[1743798045833,5.343,1807.7,1807.5,5.5325]
[1743798046461,5.343,1807.7,1807.5,5.5324]
[1743798046650,5.343,1807.7,1807.5,6.2787084]
[1743798046851,5.343,1807.7,1807.6,5.53219]
[1743798048352,5.343,1807.7,1807.5,6.2787084]
[1743798048950,5.343,1807.7,1807.4,6.35709]
[1743798048951,5.343,1807.7,1807.4,11.88988]
[1743798049367,5.343,1807.7,1807.5,5.53248]
[1743798049579,5.343,1807.7,1807.5,11.06487]
[1743798049746,5.343,1807.7,1807.4,11.88976]
[1743798051967,5.343,1807.7,1807.5,5.5324]
[1743798052337,5.343,1807.7,1807.4,6.35705]
[1743798052567,5.343,1807.7,1807.4,11.88972]
[1743798052954,5.343,1807.7,1807.5,5.5325]
[1743798053158,5.343,1807.7,1807.3,5.533]
[1743798053159,5.53231,1807.6,1807.3,5.533]
[1743798053664,11.67773,1807.7,1807.3,11.066]
[1743798053846,17.2098,1807.7,1807.3,11.066]
[1743798054045,17.2098,1807.7,1807.3,11.06601]
[1743798054266,17.20973,1807.7,1807.3,11.06601]
[1743798054568,11.67764,1807.7,1807.4,5.53277]
[1743798054867,17.20969,1807.7,1807.4,5.53277]
[1743798055063,11.67764,1807.7,1807.4,5.53266]
[1743798055245,10.87504,1807.7,1807.4,12.940713]
[1743798055446,5.343,1807.7,1807.5,11.06481]
[1743798056074,5.342,1807.7,1807.6,5.53219]
[1743798056658,5.342,1807.7,1807.6,6.32759]
[1743798057057,0.5,1807.8,1807.6,11.85968]
[1743798057264,5.342,1807.7,1807.6,13.43330629]
[1743798057588,5.842,1807.8,1807.6,7.90111629]
[1743798058081,5.842,1807.8,1807.6,13.43315629]
[1743798058457,5.842,1807.8,1807.6,7.90106629]
[1743798058679,5.842,1807.8,1807.6,7.90120629]
[1743798060087,5.842,1807.8,1807.6,13.43326629]
[1743798060385,5.842,1807.8,1807.7,6.87521663]
[1743798060386,0.5,1807.8,1807.7,6.87521663]
[1743798061286,0.5,1807.8,1807.7,11.58571316]
[1743798061456,0.5,1807.8,1807.7,11.53039956]
[1743798063607,0.5,1807.8,1807.7,0.7786]
[1743798063759,0.5,1807.8,1807.6,11.83866]
[1743798064173,0.5,1807.8,1807.6,6.30656]
[1743798064387,0.5,1807.8,1807.5,5.53246]
[1743798064619,6.03171,1807.8,1807.5,5.53246]
[1743798064786,11.56349,1807.8,1807.4,7.463423]
[1743798065090,11.56346,1807.8,1807.4,12.996123]
[1743798065255,11.56346,1807.8,1807.4,7.463423]
[1743798065593,6.03171,1807.8,1807.4,7.463423]
[1743798065759,0.5,1807.8,1807.5,5.53245]
[1743798066291,6.03158,1807.8,1807.4,12.996353]
[1743798066659,6.03158,1807.8,1807.5,5.53244]
[1743798067183,11.56335,1807.8,1807.4,12.996353]
[1743798067390,5.53194,1807.7,1807.4,7.463563]
[1743798067583,6.03158,1807.8,1807.5,5.53247]
[1743798067784,0.5,1807.8,1807.6,5.53212]
[1743798068087,0.5,1807.8,1807.5,5.53247]
[1743798068287,6.03164,1807.8,1807.5,5.53247]
[1743798069357,11.56339,1807.8,1807.4,7.463513]
[1743798069559,6.03164,1807.8,1807.5,5.5325]
[1743798070255,6.03164,1807.8,1807.7,9.40847293]
[1743798070256,0.5,1807.8,1807.7,9.40847293]
[1743798070465,0.5,1807.8,1807.7,10.23857293]
[1743798075208,0.5,1807.8,1807.6,6.30277]
[1743798075498,0.5,1807.8,1807.6,11.83485]
[1743798075701,0.5,1807.8,1807.7,5.53189]
[1743798077195,0.5,1807.8,1807.6,6.30277]
[1743798077397,5.339,1807.7,1807.5,5.8196855]
[1743798077568,6.0905,1807.7,1807.5,5.8196855]
[1743798077969,5.339,1807.7,1807.6,5.53219]
[1743798078201,5.339,1807.7,1807.6,6.29999]
[1743798082290,5.339,1807.7,1807.6,5.53219]
[1743798083580,5.339,1807.7,1807.5,11.3520555]
[1743798083788,5.339,1807.7,1807.5,5.8196855]
[1743798084012,5.339,1807.7,1807.5,5.53235]
[1743798084187,5.339,1807.7,1807.4,11.06548]
[1743798084391,5.339,1807.7,1807.4,11.06545]
[1743798085108,5.339,1807.7,1807.5,5.53241]
[1743798085316,5.339,1807.7,1807.5,5.53237]
[1743798085488,5.339,1807.7,1807.5,5.53235]
[1743798085682,5.339,1807.7,1807.6,5.53219]
[1743798088021,5.339,1807.7,1807.5,5.53235]
[1743798088227,6.3361,1807.6,1807.3,5.53305]
[1743798089610,0.8038,1807.6,1807.3,5.53298]
[1743798089798,6.336,1807.6,1807.3,5.53298]
[1743798090525,6.336,1807.6,1807.3,5.53296]
[1743798092321,6.336,1807.6,1807.2,11.0667]
[1743798092492,11.86836,1807.6,1807.2,11.0667]
[1743798092692,6.336,1807.6,1807.2,11.0667]
[1743798092899,11.86836,1807.6,1807.2,11.0667]
[1743798093125,0.8038,1807.6,1807.1,5.6337]
[1743798093327,5.53302,1807.4,1807.1,0.1]
[1743798093498,5.339,1807.3,1807.1,0.1]
[1743798093695,5.339,1807.3,1807.1,5.63361]
[1743798095628,5.339,1807.3,1807.1,11.16722]
[1743798095935,5.339,1807.3,1807.1,5.63361]
[1743798098437,5.339,1807.3,1807.1,5.63357]
[1743798101439,5.339,1807.3,1807.1,11.16716]
[1743798101828,5.339,1807.3,1807.2,5.53342]
[1743798102125,1.3208,1807.8,1807.6,5.53219]
[1743798102339,5.338,1807.7,1807.4,5.53256]
[1743798102708,5.338,1807.7,1807.5,5.53241]
[1743798103243,10.86995,1807.7,1807.4,5.53258]
[1743798103609,5.338,1807.7,1807.4,11.06525]
[1743798103810,5.74937209,1807.7,1807.4,11.06525]
[1743798104009,5.338,1807.7,1807.4,5.53258]
[1743798104205,5.338,1807.7,1807.4,11.06528]
[1743798104610,5.338,1807.7,1807.5,5.53245]
[1743798105240,0.8211,1807.6,1807.3,5.5331]
[1743798105540,6.3533,1807.6,1807.3,11.06608]
[1743798105745,0.8211,1807.6,1807.4,5.5328]
[1743798105971,0.8211,1807.6,1807.4,11.0655]
[1743798106315,5.338,1807.7,1807.5,5.53249]
[1743798106537,5.338,1807.7,1807.5,5.53238]
[1743798106714,5.338,1807.7,1807.5,11.06478]
[1743798106915,5.338,1807.7,1807.5,5.53238]
[1743798108224,5.338,1807.7,1807.4,5.53266]
[1743798108427,10.86989,1807.7,1807.4,5.53266]
[1743798108838,0.5,1807.8,1807.7,5.53189]
[1743798109014,5.838,1807.8,1807.7,5.53189]
[1743798110343,5.838,1807.8,1807.6,11.06413]
[1743798110655,5.838,1807.8,1807.7,5.53189]
[1743798112931,0.5,1807.8,1807.7,5.53189]
[1743798114020,0.5,1807.8,1807.7,6.638285]
[1743798116552,0.5,1807.8,1807.7,1.106395]
[1743798116761,0.5,1807.8,1807.7,6.638285]
[1743798118017,0.5,1807.8,1807.7,1.106395]
[1743798118220,0.5,1807.8,1807.6,5.53203]
[1743798118851,0.5,1807.8,1807.5,6.30907]
[1743798119055,6.03167,1807.8,1807.5,5.53247]
[1743798119257,6.03167,1807.8,1807.5,11.06482]
[1743798119843,6.03167,1807.8,1807.5,11.0647]
[1743798120320,6.03165,1807.8,1807.5,5.53235]
[1743798120526,0.8091,1807.6,1807.4,5.53269]
[1743798120723,5.336,1807.5,1807.4,5.53269]
[1743798120927,5.336,1807.5,1807.3,5.53304]
[1743798121123,5.336,1807.5,1807.4,5.5328]
[1743798121336,5.336,1807.5,1807.3,11.06598]
[1743798121551,5.336,1807.5,1807.3,11.06597]
[1743798121857,5.336,1807.5,1807.2,11.84292]
[1743798122032,5.53292,1807.4,1807.1,0.1]
[1743798122358,5.336,1807.5,1807.4,5.5328]
[1743798123357,5.336,1807.5,1807.3,6.3226]
[1743798123656,5.336,1807.5,1807.3,11.06596]
[1743798123956,5.336,1807.5,1807.3,5.53296]
[1743798124351,5.336,1807.5,1807.3,11.06594]
[1743798125056,5.336,1807.5,1807.3,11.06596]
[1743798125261,5.336,1807.5,1807.3,5.53296]
[1743798125748,5.336,1807.5,1807.3,11.06594]
[1743798125940,5.336,1807.5,1807.3,5.53296]
[1743798127459,5.336,1807.5,1807.3,11.06598]
[1743798128259,5.336,1807.5,1807.3,5.53296]
[1743798128960,5.336,1807.5,1807.3,11.06597]
[1743798129160,5.336,1807.5,1807.3,5.53296]
[1743798130859,5.336,1807.5,1807.3,11.06596]
[1743798131328,5.336,1807.5,1807.3,5.53296]
[1743798132161,5.336,1807.5,1807.3,11.06596]
[1743798132667,5.336,1807.5,1807.3,11.06597]
[1743798133365,5.336,1807.5,1807.4,5.5328]
[1743798134563,5.336,1807.5,1807.4,6.639376]
[1743798134768,3.0,1807.7,1807.5,5.53236]
[1743798134967,0.5,1807.8,1807.6,5.53198]
[1743798135153,5.835,1807.8,1807.6,6.47283629]
[1743798135469,5.835,1807.8,1807.7,5.53189]
[1743798135669,5.835,1807.8,1807.7,9.40847293]
[1743798135840,0.5,1807.8,1807.7,9.40847293]
[1743798136367,0.5,1807.8,1807.7,10.18657293]
[1743798136574,0.5,1807.8,1807.7,11.85251385]
[1743798139932,0.5,1807.8,1807.7,7.19783092]
[1743798140168,0.5,1807.8,1807.7,5.53189]
[1743798140369,0.5,1807.8,1807.6,5.53198]
[1743798140989,0.5,1807.8,1807.5,5.53249]
[1743798141141,0.5,1807.8,1807.5,5.53232]
[1743798141464,0.5,1807.8,1807.5,11.06469]
[1743798141772,0.5,1807.8,1807.6,5.53217]
[1743798142668,5.334,1807.7,1807.6,5.53217]
[1743798143739,5.334,1807.7,1807.6,7.460519]
[1743798144265,0.5,1807.8,1807.7,5.53189]
[1743798144473,0.5,1807.8,1807.7,9.40847293]
[1743798147244,0.5,1807.8,1807.7,5.53189]
[1743798147448,0.5,1807.8,1807.7,6.8311309]
[1743798147675,0.5,1807.8,1807.6,5.53217]
[1743798147869,1.2971,1807.8,1807.6,5.53217]
[1743798149060,1.2971,1807.8,1807.5,11.06479]
[1743798149377,5.333,1807.7,1807.5,11.06479]
[1743798149678,5.333,1807.7,1807.6,5.53219]
[1743798149883,5.333,1807.7,1807.5,11.06471]
[1743798150447,5.333,1807.7,1807.6,5.53219]
[1743798150655,5.333,1807.7,1807.5,5.53233]
[1743798151147,5.333,1807.7,1807.5,11.0647]
[1743798151346,5.333,1807.7,1807.6,5.53219]
[1743798154248,5.333,1807.7,1807.5,11.0647]
[1743798154570,5.333,1807.7,1807.5,5.53233]
[1743798154770,0.8225,1807.5,1807.2,11.35388517]
[1743798154975,0.8225,1807.5,1807.2,5.82058517]
[1743798155173,0.8225,1807.5,1807.2,11.06653]
[1743798155353,0.8225,1807.5,1807.3,5.5331]
[1743798155753,6.35516,1807.5,1807.1,11.16726]
[1743798155956,11.88793,1807.5,1807.1,5.63363]
[1743798156159,5.53296,1807.4,1807.1,5.63363]
[1743798156363,5.333,1807.3,1807.1,11.1672]
[1743798156557,5.333,1807.3,1807.1,11.16718]
[1743798156851,5.333,1807.3,1807.2,5.53342]
[1743798160087,5.333,1807.3,1807.1,5.63357]
[1743798160288,5.333,1807.3,1807.1,11.16715]
[1743798160881,5.333,1807.3,1807.2,5.53342]
[1743798161277,5.333,1807.3,1807.1,5.63357]
[1743798161986,5.333,1807.3,1807.1,11.16717]
[1743798162150,5.333,1807.3,1807.2,5.53342]
[1743798165007,11.64135,1807.3,1807.1,0.1]
[1743798165484,5.53342,1807.2,1807.1,0.1]
[1743798166567,17.17473,1807.3,1807.1,0.1]
[1743798166786,11.64135,1807.3,1807.1,0.1]
[1743798166987,17.17463,1807.3,1807.1,0.1]
[1743798168302,17.17461,1807.3,1807.1,0.1]
[1743798169499,5.53342,1807.2,1807.1,0.1]
[1743798174899,9.29592,1807.2,1807.1,0.1]
[1743798181821,14.62792,1807.2,1807.1,0.1]
[1743798182774,15.17792,1807.2,1807.1,0.1]
[1743798182974,9.29592,1807.2,1807.1,0.1]
[1743798183201,14.62792,1807.2,1807.1,0.1]
[1743798188214,11.62792,1807.2,1807.1,0.1]
[1743798191101,10.86542,1807.2,1807.1,0.1]
[1743798192211,11.65762,1807.2,1807.1,0.1]
[1743798194018,10.86542,1807.2,1807.1,0.1]
[1743798196922,13.86542,1807.2,1807.1,0.1]
[1743798197089,10.86542,1807.2,1807.1,0.1]
[1743798197290,5.53291,1807.4,1807.1,0.1]
[1743798197489,5.53326,1807.3,1807.1,0.1]
[1743798197921,5.53342,1807.2,1807.1,0.1]
[1743798198818,5.53326,1807.3,1807.1,0.1]
[1743798199124,11.0666,1807.3,1807.1,0.1]
[1743798199323,5.53342,1807.2,1807.1,0.1]
[1743798203243,9.91612,1807.2,1807.1,0.1]
[1743798204731,15.20362,1807.2,1807.1,0.1]
[1743798205040,9.87362,1807.2,1807.1,0.1]
[1743798205241,8.53342,1807.2,1807.1,0.1]
[1743798209448,9.90542,1807.2,1807.1,0.1]
[1743798210736,9.35542,1807.2,1807.1,0.1]
[1743798210953,8.53342,1807.2,1807.1,0.1]
[1743798214624,5.53251,1807.5,1807.2,5.53338]
[1743798214834,5.5328,1807.4,1807.3,3.87658293]
[1743798215034,5.5328,1807.4,1807.2,0.7544]
[1743798215239,5.53294,1807.4,1807.2,1.78086029]
[1743798215434,5.53294,1807.4,1807.2,0.7544]
[1743798215821,11.06593,1807.4,1807.2,0.7544]
[1743798216027,5.53311,1807.3,1807.2,0.7544]
[1743798216229,11.06641,1807.3,1807.1,4.77088293]
[1743798216561,5.53342,1807.2,1807.1,0.1]
[1743798217146,11.06652,1807.3,1807.1,0.1]
[1743798217828,5.53342,1807.2,1807.1,0.1]
[1743798218225,9.33822,1807.2,1807.1,0.1]
[1743798220331,9.88822,1807.2,1807.1,0.1]
[1743798222758,9.08342,1807.2,1807.1,0.1]
[1743798222947,14.41242,1807.2,1807.1,0.1]
[1743798223264,14.62712,1807.2,1807.1,0.1]
[1743798223447,13.86242,1807.2,1807.1,0.1]
[1743798223842,8.53342,1807.2,1807.1,0.1]
[1743798224043,8.53342,1807.2,1807.1,0.8909]
[1743798224646,16.39535,1807.3,1807.1,0.8909]
[1743798224845,5.53282,1807.4,1807.1,0.8909]
[1743798225368,5.53282,1807.4,1807.1,6.42453]
[1743798225568,5.53282,1807.4,1807.1,7.066983]
[1743798225943,5.53282,1807.4,1807.1,7.066963]
[1743798226699,11.06579,1807.4,1807.1,7.066963]
[1743798226859,5.53282,1807.4,1807.1,7.066963]
[1743798228143,3.0,1807.4,1807.1,7.066963]
[1743798228343,8.53294,1807.4,1807.2,0.7066963]
[1743798228891,14.06595,1807.4,1807.2,0.7066963]
[1743798229258,8.53294,1807.4,1807.2,0.7066963]
[1743798229779,5.53311,1807.3,1807.1,0.8909]
[1743798229945,11.06644,1807.3,1807.1,0.8909]
[1743798230146,5.53311,1807.3,1807.1,0.8909]
[1743798232578,8.53287,1807.4,1807.1,0.8909]
[1743798232760,14.06594,1807.4,1807.1,0.8909]
[1743798233278,14.06586,1807.4,1807.1,1.533378]
[1743798233482,5.53313,1807.3,1807.1,1.533378]
[1743798233984,8.53287,1807.4,1807.1,1.533378]
[1743798234354,5.53287,1807.4,1807.1,7.067008]
[1743798234746,11.27964591,1807.5,1807.1,12.600618]
[1743798234952,5.53255,1807.5,1807.2,1.2600618]
[1743798235151,5.53225,1807.6,1807.3,6.33931]
[1743798235350,5.53225,1807.6,1807.3,0.8062]
[1743798235552,5.53225,1807.6,1807.3,6.33929]
[1743798236370,11.06466,1807.6,1807.3,0.8062]
[1743798236572,6.32305,1807.5,1807.2,5.5334]
[1743798236773,11.06538,1807.5,1807.2,5.5334]
[1743798236965,11.06532,1807.5,1807.2,5.5334]
[1743798237160,5.53283,1807.4,1807.1,6.41943]
[1743798237374,5.53283,1807.4,1807.1,13.148386]
[1743798237579,5.53265,1807.5,1807.1,13.148386]
[1743798237781,11.06533,1807.5,1807.1,13.148356]
[1743798237983,5.53265,1807.5,1807.1,13.148356]
[1743798238691,5.53265,1807.5,1807.1,13.148346]
[1743798239067,5.53226,1807.6,1807.3,0.7945]
[1743798239275,11.06462,1807.6,1807.3,0.7945]
[1743798239570,5.5325,1807.5,1807.3,0.7945]
[1743798240987,5.5325,1807.5,1807.2,5.53327]
[1743798241192,0.5,1807.8,1807.5,6.35541]
[1743798241399,0.5,1807.8,1807.6,10.04421393]
[1743798241585,0.5,1807.8,1807.6,15.57629393]
[1743798241894,0.5,1807.8,1807.6,0.635541]
[1743798242398,0.5,1807.8,1807.6,6.167711]
[1743798242599,0.5,1807.8,1807.6,0.635541]
[1743798242895,0.55,1807.7,1807.3,0.8319]
[1743798243070,11.06539,1807.5,1807.3,0.8319]
[1743798243270,5.53269,1807.5,1807.3,0.8319]
[1743798243762,5.53269,1807.5,1807.1,5.63357]
[1743798243964,5.53269,1807.5,1807.2,0.8102]
[1743798244176,5.53269,1807.5,1807.2,6.34359]
[1743798244374,5.53223,1807.6,1807.2,6.3435]
[1743798244569,0.5,1807.8,1807.2,0.86553011]
[1743798244900,0.5,1807.8,1807.7,6.34469]
[1743798245076,0.5,1807.8,1807.7,7.532352]
[1743798245470,0.5,1807.8,1807.7,2.000462]
[1743798245877,0.5,1807.8,1807.7,7.532352]
[1743798246477,0.5,1807.8,1807.7,2.000462]
[1743798247869,0.5,1807.8,1807.7,7.532352]
[1743798250371,0.5,1807.8,1807.7,2.000462]
[1743798250897,0.5,1807.8,1807.7,0.8128]
[1743798251105,0.5,1807.8,1807.5,6.3624]
[1743798251305,6.03168,1807.8,1807.5,6.3624]
[1743798251516,11.56356,1807.8,1807.5,0.83]
[1743798251683,6.03168,1807.8,1807.5,0.83]
[1743798252401,6.03168,1807.8,1807.5,6.36236]
[1743798253404,6.03168,1807.8,1807.5,6.36248]
[1743798253616,0.5,1807.8,1807.5,13.084345]
[1743798253906,0.5,1807.8,1807.5,7.551865]
[1743798254109,0.5,1807.8,1807.6,5.53214]
[1743798254409,0.5,1807.8,1807.5,7.551855]
[1743798254704,6.03175,1807.8,1807.5,2.019515]
[1743798254909,11.5635,1807.8,1807.5,0.83]
[1743798255203,6.03175,1807.8,1807.5,0.83]
[1743798255507,6.03175,1807.8,1807.5,6.36249]
[1743798255703,6.0317,1807.8,1807.5,6.36238]
[1743798256509,0.5,1807.8,1807.5,6.36238]
[1743798256689,6.03159,1807.8,1807.5,6.998728]
[1743798257186,0.5,1807.8,1807.5,12.531068]
[1743798257405,0.5,1807.8,1807.6,5.53207]
[1743798257600,0.5,1807.8,1807.7,5.53189]
[1743798257911,0.5,1807.8,1807.7,6.35899]
[1743798258112,0.5,1807.8,1807.7,7.548096]
[1743798258809,0.5,1807.8,1807.7,2.016206]
[1743798259309,0.5,1807.8,1807.5,6.168708]
[1743798259511,0.5,1807.8,1807.5,11.700998]
[1743798259919,5.53217,1807.7,1807.3,5.53311]
[1743798260096,6.29349,1807.6,1807.2,11.89315]
[1743798260290,6.29349,1807.6,1807.3,5.53309]
[1743798261016,11.8259,1807.6,1807.2,6.35977]
[1743798261210,11.8259,1807.6,1807.2,7.0620827]
[1743798261512,5.53252,1807.5,1807.2,12.5954027]
[1743798261718,6.29349,1807.6,1807.2,12.5954027]
[1743798262217,6.29349,1807.6,1807.3,5.5331]
[1743798262581,6.29349,1807.6,1807.2,12.5954027]
[1743798262786,11.82589,1807.6,1807.2,12.5954027]
[1743798263009,6.29349,1807.6,1807.2,12.5954027]
[1743798263629,6.29349,1807.6,1807.3,5.53309]
[1743798263823,11.82595,1807.6,1807.2,7.0620827]
[1743798264022,11.82594,1807.6,1807.2,12.5953927]
[1743798264388,6.29349,1807.6,1807.3,5.53307]
[1743798265088,6.29349,1807.6,1807.2,12.5953927]
[1743798265289,6.29349,1807.6,1807.3,5.53309]
[1743798265828,5.53229,1807.6,1807.3,11.06607]
[1743798266027,11.67433,1807.7,1807.4,5.53268]
[1743798266318,11.35564,1807.8,1807.5,6.32996]
[1743798266925,5.824,1807.8,1807.6,5.53196]
[1743798267102,0.5,1807.8,1807.6,5.53196]
[1743798267306,0.5,1807.8,1807.7,0.72602995]
[1743798268416,0.5,1807.8,1807.7,0.17283395]
[1743798268993,6.03158,1807.8,1807.7,0.17283395]
[1743798269192,0.5,1807.8,1807.7,0.17283395]
[1743798270025,1.3299,1807.8,1807.7,0.17283395]
[1743798270221,6.03158,1807.8,1807.7,0.17283395]
[1743798270411,0.5,1807.8,1807.7,0.17283395]
[1743798270620,6.03158,1807.8,1807.7,0.17283395]
[1743798271794,6.03158,1807.8,1807.5,11.06476]
[1743798271998,0.5,1807.8,1807.7,0.17284963]
[1743798274433,0.5,1807.8,1807.7,5.70473963]
[1743798275228,0.5,1807.8,1807.7,0.17284963]
[1743798279210,0.5,1807.8,1807.7,5.70473963]
[1743798279751,0.5,1807.8,1807.7,0.17284963]
[1743798279952,0.5,1807.8,1807.7,6.91119659]
[1743798280448,0.5,1807.8,1807.7,1.37930659]
[1743798281155,0.5,1807.8,1807.7,6.91119659]
[1743798281347,0.5,1807.8,1807.7,1.37930659]
[1743798282041,0.5,1807.8,1807.7,6.91119659]
[1743798283542,0.5,1807.8,1807.7,0.17284963]
[1743798283842,6.82048,1807.8,1807.7,0.17284963]
[1743798284045,5.5324,1807.6,1807.3,0.17284963]
[1743798284244,6.0914,1807.5,1807.3,0.17284963]
[1743798284447,6.0914,1807.5,1807.4,0.17284963]
[1743798284949,11.6239,1807.5,1807.4,0.17284963]
[1743798285114,6.0914,1807.5,1807.4,0.17284963]
[1743798285744,5.322,1807.5,1807.4,0.17284963]
[1743798285946,5.322,1807.5,1807.4,5.70564963]
[1743798286118,5.322,1807.5,1807.4,6.82951959]
[1743798287350,5.322,1807.5,1807.4,1.29671959]
[1743798287644,5.322,1807.5,1807.4,6.82951959]
[1743798288847,5.322,1807.5,1807.4,1.29671959]
[1743798290253,5.322,1807.5,1807.4,0.17284963]
[1743798292621,10.8545,1807.5,1807.4,0.17284963]
[1743798292821,5.322,1807.5,1807.4,0.17284963]
[1743798294027,5.322,1807.5,1807.4,5.70564963]
[1743798294850,5.322,1807.5,1807.4,0.17284963]
[1743798295247,5.322,1807.5,1807.4,5.70564963]
[1743798295452,5.322,1807.5,1807.3,11.06601]
[1743798295648,5.322,1807.5,1807.3,5.533]
[1743798295953,5.322,1807.5,1807.4,5.5328]
[1743798296247,5.322,1807.5,1807.3,5.53298]
[1743798296652,5.322,1807.5,1807.3,5.53296]
[1743798296853,5.322,1807.5,1807.3,11.06599]
[1743798297052,5.322,1807.5,1807.4,5.5328]
[1743798297550,5.322,1807.5,1807.3,5.53296]
[1743798298048,5.322,1807.5,1807.3,11.06596]